bitfinex-derivatives/quotes_SOLF0:USTF0_20241227
["timestamp","ask_amount","ask_price","bid_price","bid_amount"]
[1735292467653,4.3,194.1,193.98,11.77257824]
[1735292467858,4.3,194.1,193.99,4.52841963]
[1735292468159,4.3,194.1,193.96,4.3]
[1735292468160,28.72073005,194.1,194.0,11.7687169]
[1735292468458,28.72073005,194.1,194.01,9.39311963]
[1735292468660,28.72073005,194.1,194.02,11.76379628]
[1735292468853,28.72073005,194.1,194.05,2.5795]
[1735292469157,28.72073005,194.1,194.01,4.8647]
[1735292469353,28.72073005,194.1,194.02,11.74873585]
[1735292469554,7.18018251,194.15,194.03,16.04873585]
[1735292469761,7.18018251,194.15,194.04,11.74873585]
[1735292469959,7.18018251,194.15,194.05,11.74873585]
[1735292470260,7.18018251,194.15,194.06,11.74873585]
[1735292470450,7.18018251,194.15,194.07,4.51883403]
[1735292470648,89.72150496,194.18,194.08,4.51883403]
[1735292470649,4.3,194.18,194.08,4.51883403]
[1735292470852,4.3,194.18,194.03,4.3]
[1735292471060,2.5786,194.13,194.04,11.74599892]
[1735292471259,2.5786,194.13,194.05,11.74599892]
[1735292471465,4.3,194.18,194.06,11.74599892]
[1735292471665,4.3,194.18,194.07,7.09699189]
[1735292471855,11.48018251,194.2,194.08,4.51769189]
[1735292472054,11.48018251,194.2,194.03,4.3]
[1735292472261,11.48018251,194.2,194.04,11.74699155]
[1735292472561,7.18018251,194.19,194.05,11.74699155]
[1735292472857,7.18018251,194.19,194.06,11.74699155]
[1735292473059,7.18018251,194.19,194.07,11.74699155]
[1735292473262,7.18018251,194.19,194.08,11.74699155]
[1735292473456,7.18018251,194.19,194.09,16.50119155]
[1735292473651,7.18018251,194.19,194.1,4.3]
[1735292473857,2.5778,194.18,194.11,14.3139637]
[1735292474064,7.18018251,194.21,194.12,4.51356296]
[1735292474364,2.578,194.17,194.11,2.5787]
[1735292474561,2.578,194.17,194.12,4.51295598]
[1735292474764,2.578,194.17,194.11,2.5787]
[1735292474959,2.578,194.17,194.12,4.51308184]
[1735292475162,2.578,194.17,194.1,4.3]
[1735292475464,2.578,194.17,194.12,2.5786]
[1735292475954,2.578,194.17,194.1,4.3]
[1735292475955,2.5778,194.19,194.13,7.09040623]
[1735292476153,2.5778,194.19,194.13,2.5784]
[1735292476352,31.93863005,194.24,194.13,2.5784]
[1735292476958,3.2179,194.24,194.13,2.5784]
[1735292477154,3.2179,194.24,194.1,4.3]
[1735292477354,3.2179,194.24,194.11,4.51077442]
[1735292477559,2.578,194.17,194.12,4.51077442]
[1735292477755,3.2179,194.24,194.11,2.5788]
[1735292477958,3.2179,194.24,194.1,4.3]
[1735292478157,0.80657002,194.23,194.1,4.3]
[1735292478365,0.80657002,194.23,194.09,7.3331]
[1735292478566,0.80657002,194.23,194.09,4.7542]
[1735292478864,0.80657002,194.23,194.06,2.5793]
[1735292479265,2.5784,194.15,194.05,4.3]
[1735292479465,4.3,194.17,194.07,2.5793]
[1735292480257,2.5785,194.13,193.96,4.697]
[1735292480463,4.3,194.17,193.97,11.73848416]
[1735292480667,5.61402669,194.16,193.98,16.03848416]
[1735292480967,0.80682669,194.15,193.99,11.73848416]
[1735292481261,0.80703461,194.14,193.96,8.997]
[1735292481469,2.5797,194.04,193.97,7.09905853]
[1735292481763,4.3,194.08,193.96,4.697]
[1735292481968,4.3,194.08,193.97,4.51771366]
[1735292482164,4.3,194.08,193.96,4.697]
[1735292482369,2.5796,194.05,193.98,2.5805]
[1735292482870,2.5797,194.04,193.97,2.5806]
[1735292483167,4.3,194.08,193.96,1.5377]
[1735292483468,4.5847,194.07,193.91,64.43746815]
[1735292483668,4.5847,194.07,193.92,11.74624831]
[1735292483863,4.5847,194.07,193.93,4.51778781]
[1735292484064,2.5803,194.0,193.94,4.51778781]
[1735292484369,2.5803,194.0,193.9,4.639]
[1735292484557,4.5847,194.07,193.91,11.73418911]
[1735292484762,4.5847,194.07,193.92,4.51314966]
[1735292484958,0.80744679,194.06,193.9,4.639]
[1735292485160,0.80744679,194.06,193.78,11.7313928]
[1735292485366,0.80744679,194.06,193.87,2.5819]
[1735292485768,2.5812,193.93,193.85,2.5821]
[1735292486264,2.581,193.95,193.88,2.5818]
[1735292486468,4.3,193.96,193.84,11.72566965]
[1735292486768,4.3,193.96,193.85,4.50433925]
[1735292486965,2.5809,193.95,193.86,4.50276173]
[1735292487167,2.5809,193.95,193.84,7.2213304]
[1735292487365,2.5809,193.95,193.85,4.50195242]
[1735292487561,2.5809,193.95,193.82,7.2213304]
[1735292487869,2.581,193.94,193.83,4.49865187]
[1735292488168,4.3,193.96,193.83,4.49865187]
[1735292488364,6.8604,193.99,193.84,4.49865187]
[1735292488673,4.28,193.99,193.82,4.49865187]
[1735292488971,2.5806,193.98,193.83,4.49865187]
[1735292489167,2.5806,193.98,193.84,4.49865187]
[1735292489368,2.5806,193.98,193.85,4.49865187]
[1735292489563,4.28,193.99,193.83,4.49865187]
[1735292489963,4.858,193.98,193.81,4.28]
[1735292490174,4.858,193.98,193.81,8.77865187]
[1735292490466,4.858,193.98,193.81,4.28]
[1735292490870,4.858,193.98,193.87,2.5819]
[1735292491068,4.858,193.98,193.82,4.49865187]
[1735292491372,28.72073005,194.06,193.82,4.49865187]
[1735292491574,28.72073005,194.06,193.83,4.49865187]
[1735292491575,9.90418119,194.05,193.83,4.49865187]
[1735292491766,9.0967,194.05,193.84,4.49865187]
[1735292491969,9.0967,194.05,193.85,4.49865187]
[1735292492169,2.5801,194.01,193.86,6.14915187]
[1735292492370,2.5801,194.01,193.87,7.54495187]
[1735292492571,2.5801,194.01,193.88,4.28]
[1735292492767,2.5801,194.01,193.91,2.5813]
[1735292492973,2.5801,194.01,193.88,4.28]
[1735292493681,9.0967,194.05,193.94,2.5809]
[1735292493881,2.5802,194.0,193.94,2.5809]
[1735292494077,2.5802,194.0,193.88,4.28]
[1735292494277,2.5802,194.0,193.88,8.76687418]
[1735292494479,2.5802,194.0,193.88,4.28]
[1735292495177,2.5801,194.01,193.88,4.28]
[1735292497083,2.5801,194.01,193.96,2.5807]
[1735292499183,9.0967,194.05,193.88,8.76541989]
[1735292499377,9.0967,194.05,193.94,2.5809]
[1735292499378,2.5802,194.0,193.94,2.5809]
[1735292499585,2.5802,194.0,193.88,4.28]
[1735292499983,9.0967,194.05,193.94,2.581]
[1735292500284,9.0967,194.05,193.88,4.28]
[1735292500679,2.5806,193.97,193.87,3.0463]
[1735292500887,9.0967,194.05,193.87,3.0463]
[1735292501079,0.80762926,194.04,193.87,3.0463]
[1735292501384,0.80762926,194.04,193.92,2.5812]
[1735292501686,0.80762926,194.04,193.87,3.0463]
[1735292502381,0.80762926,194.04,193.9,2.5816]
[1735292502382,2.5808,193.97,193.9,2.5816]
[1735292502783,2.5808,193.97,193.87,3.0463]
[1735292503086,4.28,193.98,193.92,2.5813]
[1735292503682,4.28,193.98,193.87,3.0463]
[1735292504782,4.28,193.98,193.85,4.28]
[1735292504989,4.8665,193.97,193.85,4.28]
[1735292505593,2.5812,193.93,193.85,4.28]
[1735292505887,2.5812,193.93,193.82,1.6647]
[1735292506187,2.5812,193.93,193.86,2.582]
[1735292506781,2.5812,193.93,193.82,1.6647]
[1735292506980,4.8665,193.97,193.87,2.582]
[1735292507685,2.5813,193.93,193.87,2.582]
[1735292508086,4.8665,193.97,193.87,2.582]
[1735292508280,4.8665,193.97,193.76,4.28]
[1735292508497,4.8665,193.97,193.77,4.48837371]
[1735292508683,4.8665,193.97,193.78,4.48837371]
[1735292508887,0.80791649,193.96,193.77,4.48837371]
[1735292509089,0.80791649,193.96,193.77,4.48745964]
[1735292509289,2.5818,193.88,193.82,2.5826]
[1735292509490,4.28,193.9,193.82,2.5826]
[1735292509884,4.28,193.9,193.75,11.46139794]
[1735292509885,4.28,193.9,193.77,4.48666107]
[1735292510091,4.28,193.95,193.78,4.48666107]
[1735292510294,4.28,193.95,193.75,4.28]
[1735292510295,4.28,193.95,193.79,4.48666107]
[1735292510593,4.28,193.95,193.8,9.36956107]
[1735292510786,4.28,193.95,193.81,4.48666107]
[1735292511186,4.28,193.95,193.81,4.48223367]
[1735292511390,4.28,193.95,193.82,4.48223367]
[1735292511694,2.5811,193.94,193.83,4.48223367]
[1735292511987,2.5811,193.94,193.81,4.48223367]
[1735292512192,4.28,193.95,193.82,4.48223367]
[1735292512491,2.5812,193.93,193.88,2.5817]
[1735292513597,4.8665,193.97,193.82,4.28]
[1735292513893,2.5811,193.94,193.88,2.5818]
[1735292514289,2.5812,193.93,193.88,2.5818]
[1735292514991,2.5815,193.91,193.86,2.582]
[1735292516593,7.18018251,193.98,193.82,4.28]
[1735292516795,7.18018251,193.98,193.83,11.64713303]
[1735292516995,7.18018251,193.98,193.84,11.64713303]
[1735292517185,9.76068251,193.98,193.92,2.5812]
[1735292517390,9.76068251,193.98,193.86,4.47669776]
[1735292517591,2.5805,193.98,193.83,7.16271642]
[1735292517788,2.5805,193.98,193.88,2.5818]
[1735292517992,2.5805,193.98,193.85,4.47841908]
[1735292518293,8.8839,194.02,193.86,4.47841908]
[1735292518492,2.5809,193.96,193.87,4.47841908]
[1735292518696,8.8839,194.02,193.84,11.64228365]
[1735292518999,8.8839,194.02,193.85,4.47956723]
[1735292519191,2.5809,193.95,193.9,2.5815]
[1735292520396,2.5809,193.95,193.87,4.4811822]
[1735292520598,2.5807,193.97,193.92,2.5813]
[1735292522093,8.8839,194.02,193.88,3.1115]
[1735292522691,16.06408251,194.02,193.86,7.18576427]
[1735292522891,16.06408251,194.02,193.83,10.4528699]
[1735292523098,16.06408251,194.02,193.87,2.5818]
[1735292523296,0.8076745,194.01,193.83,3.2578]
[1735292523492,0.8076745,194.01,193.84,4.50322826]
[1735292523694,7.18018251,193.99,193.83,3.2578]
[1735292523895,7.18018251,193.99,193.84,4.50408581]
[1735292524195,0.80784325,193.98,193.85,4.50824631]
[1735292524393,0.80784325,193.98,193.81,7.21466874]
[1735292524594,0.80784325,193.98,193.82,4.50989552]
[1735292524794,0.80796707,193.97,193.78,2.5831]
[1735292524994,7.98814958,193.96,193.79,4.51145894]
[1735292525190,5.08796707,193.95,193.8,4.51531981]
[1735292525394,4.28,193.95,193.81,4.51531981]
[1735292525693,46.34772166,193.94,193.82,4.51531981]
[1735292526000,46.34772166,193.94,193.73,4.28]
[1735292526200,2.582,193.87,193.74,11.73445541]
[1735292526401,2.582,193.87,193.75,11.73445541]
[1735292526612,2.5823,193.85,193.76,11.73445541]
[1735292526800,4.28,193.88,193.77,11.73445541]
[1735292526995,4.28,193.88,193.78,11.73445541]
[1735292527189,4.28,193.88,193.79,11.73445541]
[1735292527395,4.28,193.9,193.82,2.5825]
[1735292527599,4.28,193.9,193.83,4.51325208]
[1735292527798,4.28,193.9,193.82,2.5825]
[1735292527997,2.5819,193.88,193.83,4.51328684]
[1735292528200,2.5819,193.88,193.82,2.5825]
[1735292528401,2.5819,193.88,193.83,4.51411332]
[1735292528603,2.5819,193.88,193.82,2.5825]
[1735292529803,2.5821,193.86,193.8,2.5828]
[1735292530005,2.5821,193.86,193.81,4.51336966]
[1735292530298,2.5821,193.86,193.8,2.5828]
[1735292530505,2.5821,193.86,193.81,4.51319467]
[1735292530799,2.5821,193.86,193.8,2.5828]
[1735292531003,4.28,193.9,193.74,4.28]
[1735292531203,4.28,193.9,193.75,11.73295517]
[1735292531405,4.28,193.9,193.76,11.73295517]
[1735292531706,4.28,193.9,193.77,4.51267506]
[1735292532005,4.28,193.9,193.78,4.51264776]
[1735292532201,2.5825,193.83,193.72,4.7666]
[1735292532398,2.5825,193.83,193.73,11.73455886]
[1735292532704,2.5825,193.83,193.76,2.5833]
[1735292532899,2.5825,193.83,193.77,4.51329187]
[1735292533100,33.00073005,193.9,193.72,4.7666]
[1735292533300,2.5824,193.84,193.73,11.72765344]
[1735292533604,33.00073005,193.9,193.74,11.72765344]
[1735292533801,33.00073005,193.9,193.75,11.72765344]
[1735292534002,33.00073005,193.9,193.76,4.50996262]
[1735292534200,4.28,193.9,193.77,2.5832]
[1735292534805,0.80828754,193.89,193.72,3.1353]
[1735292534998,4.28,193.9,193.73,11.72663146]
[1735292535200,2.5823,193.85,193.76,2.5834]
[1735292535401,4.28,193.9,193.76,2.5834]
[1735292535607,7.18018251,193.88,193.76,2.5834]
[1735292535802,7.18018251,193.88,193.8,2.5829]
[1735292536003,7.18018251,193.88,193.73,7.21206325]
[1735292536305,7.18018251,193.88,193.83,2.5825]
[1735292536504,9.76188251,193.89,193.83,2.5825]
[1735292536900,7.18018251,193.89,193.86,2.582]
[1735292537299,2.5813,193.93,193.86,2.582]
[1735292537502,2.5814,193.92,193.86,2.582]
[1735292538106,2.5825,193.83,193.76,2.5834]
[1735292538302,4.28,193.87,193.69,4.28]
[1735292538503,9.0191,193.86,193.7,11.72088432]
[1735292538703,2.5829,193.81,193.75,2.5836]
[1735292539299,2.5826,193.83,193.76,2.5834]
[1735292541312,2.5827,193.82,193.76,2.5834]
[1735292541715,4.7391,193.86,193.7,7.21438621]
[1735292541911,2.5828,193.81,193.71,11.72381225]
[1735292542214,4.7391,193.86,193.72,4.50942604]
[1735292542415,2.5829,193.8,193.74,2.5837]
[1735292543011,4.7391,193.86,193.73,2.5838]
[1735292543012,2.5831,193.79,193.73,2.5838]
[1735292544715,2.5828,193.81,193.72,7.21601238]
[1735292544912,2.5828,193.81,193.73,4.51135558]
[1735292545228,28.72073005,193.9,193.74,11.7284309]
[1735292545414,28.72073005,193.9,193.75,16.3690309]
[1735292545715,28.72073005,193.9,193.76,11.7284309]
[1735292545912,28.72073005,193.9,193.77,4.28]
[1735292546108,31.30213005,193.91,193.78,11.72006327]
[1735292546311,28.72073005,193.91,193.79,11.72006327]
[1735292546511,28.72073005,193.91,193.8,11.72043469]
[1735292546716,28.72073005,193.91,193.81,4.50771664]
[1735292546907,28.72073005,193.91,193.79,7.21271805]
[1735292547108,152.61434849,193.95,193.83,2.5825]
[1735292547109,9.0967,193.95,193.83,2.5825]
[1735292548418,2.5818,193.89,193.83,2.5825]
[1735292548614,9.0967,193.95,193.82,2.5826]
[1735292548815,9.0967,193.95,193.79,7.22255974]
[1735292549013,0.80801065,193.94,193.77,4.28]
[1735292549518,0.80801065,193.94,193.64,6.76327852]
[1735292549519,2.5831,193.79,193.71,4.26]
[1735292549721,4.26,193.84,193.72,7.1037548]
[1735292549924,4.26,193.84,193.69,7.23353714]
[1735292550111,2.5832,193.78,193.7,4.5214932]
[1735292550316,2.5832,193.78,193.71,4.5214932]
[1735292550611,2.5832,193.78,193.67,1.5001]
[1735292550612,2.5836,193.75,193.67,1.5001]
[1735292550813,4.7537,193.83,193.68,4.52369581]
[1735292551013,0.80854808,193.82,193.67,1.5001]
[1735292551415,2.5838,193.74,193.67,1.5001]
[1735292551719,4.7537,193.83,193.67,1.5001]
[1735292552220,11.93388251,193.83,193.68,4.52078521]
[1735292552423,2.5833,193.78,193.69,4.52078521]
[1735292552724,2.5833,193.78,193.67,8.73449694]
[1735292552925,2.5833,193.78,193.7,2.5842]
[1735292553125,2.5833,193.77,193.7,2.5842]
[1735292553321,11.93388251,193.83,193.68,4.51866847]
[1735292553527,4.7537,193.83,193.67,1.5001]
[1735292553735,0.80861545,193.82,193.67,1.5001]
[1735292554230,2.5837,193.74,193.67,4.0847]
[1735292554428,4.7537,193.83,193.67,4.0847]
[1735292554429,11.93388251,193.83,193.67,1.5001]
[1735292554627,0.80864798,193.82,193.67,1.5001]
[1735292554924,2.5833,193.77,193.69,2.5843]
[1735292555231,4.26,193.82,193.67,1.5001]
[1735292555620,2.5832,193.78,193.71,2.5841]
[1735292556423,2.5833,193.77,193.71,2.5841]
[1735292557425,2.5836,193.75,193.67,1.5001]
[1735292557729,4.26,193.82,193.67,1.5001]
[1735292557931,2.5834,193.76,193.69,2.5844]
[1735292560030,2.5834,193.76,193.7,2.5842]
[1735292561534,2.5837,193.75,193.68,2.5844]
[1735292561734,4.26,193.82,193.68,2.5844]
[1735292562737,0.8086002,193.81,193.59,4.26]
[1735292562928,0.8086002,193.81,193.6,4.51564512]
[1735292563232,2.5845,193.69,193.61,4.51564512]
[1735292563431,2.5845,193.69,193.59,12.0690322]
[1735292563631,4.26,193.73,193.6,4.51745825]
[1735292563828,4.26,193.73,193.59,4.844]
[1735292563829,2.5847,193.67,193.59,4.844]
[1735292564022,4.26,193.73,193.6,4.51622557]
[1735292564226,4.26,193.73,193.61,2.5854]
[1735292564829,2.5846,193.68,193.61,2.5854]
[1735292565932,2.5846,193.68,193.62,2.5852]
[1735292566332,2.5841,193.71,193.65,2.5849]
[1735292566629,4.26,193.77,193.6,11.73916952]
[1735292566829,4.26,193.77,193.61,11.73916952]
[1735292567027,4.26,193.77,193.62,11.73916952]
[1735292567333,4.26,193.77,193.63,4.51521766]
[1735292567534,2.5837,193.75,193.69,2.5843]
[1735292567727,28.72073005,193.79,193.65,4.51338542]
[1735292567925,28.72073005,193.79,193.64,4.26]
[1735292567926,7.18018251,193.79,193.66,11.73566491]
[1735292568234,4.26,193.81,193.67,7.68698542]
[1735292568422,4.26,193.81,193.68,4.51338542]
[1735292568628,2.5833,193.77,193.7,2.5841]
[1735292568822,28.72073005,193.82,193.67,3.1736]
[1735292569024,32.98073005,193.82,193.68,13.37155687]
[1735292569226,2.5833,193.78,193.71,2.5841]
[1735292569435,9.0137,193.83,193.68,1.6345]
[1735292569626,9.0137,193.83,193.69,11.73654626]
[1735292569825,9.0137,193.83,193.7,4.51403335]
[1735292570027,9.0137,193.83,193.71,4.51397856]
[1735292570229,9.0137,193.83,193.68,1.6345]
[1735292570230,2.5831,193.79,193.73,2.5837]
[1735292570428,28.72073005,193.88,193.74,4.51137419]
[1735292570625,28.72073005,193.88,193.75,7.58397419]
[1735292570825,2.5821,193.87,193.76,4.51137419]
[1735292571027,2.5821,193.87,193.77,4.51137419]
[1735292571335,2.5821,193.87,193.76,8.80107322]
[1735292571528,2.5821,193.87,193.81,2.5827]
[1735292571727,3.1382,193.9,193.81,2.5827]
[1735292572437,7.18018251,193.91,193.82,2.5826]
[1735292572638,5.7775,193.92,193.82,2.5826]
[1735292572939,2.5817,193.89,193.82,2.5826]
[1735292573841,5.7775,193.92,193.82,2.5826]
[1735292573842,2.5818,193.88,193.82,2.5826]
[1735292574338,2.5817,193.9,193.84,2.5824]
[1735292575535,2.5814,193.92,193.8,7.21023371]
[1735292575737,2.5814,193.92,193.81,4.50417112]
[1735292575933,2.5814,193.92,193.82,4.50417112]
[1735292576136,2.5814,193.92,193.8,7.21023371]
[1735292576438,3.2054,193.95,193.8,7.2054203]
[1735292576631,3.2054,193.95,193.79,4.26]
[1735292576830,3.2054,193.95,193.8,4.50338768]
[1735292577031,2.5817,193.9,193.83,2.5824]
[1735292577435,3.2054,193.95,193.83,2.5824]
[1735292577633,3.2054,193.95,193.81,2.5826]
[1735292577838,3.2054,193.95,193.8,4.26]
[1735292578933,3.2054,193.95,193.84,2.5823]
[1735292579139,3.2054,193.95,193.8,4.26]
[1735292579545,2.5815,193.91,193.83,2.5824]
[1735292579841,2.5815,193.91,193.8,4.26]
[1735292580438,5.7864,193.95,193.86,2.582]
[1735292580636,3.2054,193.95,193.81,4.50168378]
[1735292580842,3.2054,193.95,193.8,4.26]
[1735292581039,2.5814,193.92,193.85,2.5822]
[1735292581240,3.2054,193.95,193.8,4.26]
[1735292581642,2.5816,193.9,193.82,2.5825]
[1735292581841,3.2054,193.95,193.79,4.24]
[1735292582137,2.5817,193.89,193.82,2.5826]
[1735292583144,2.5817,193.89,193.79,4.24]
[1735292583346,2.5817,193.89,193.83,2.5824]
[1735292584749,2.5814,193.92,193.86,2.582]
[1735292584944,3.2054,193.95,193.8,4.50015855]
[1735292585140,3.2054,193.95,193.81,4.50015855]
[1735292585347,2.5811,193.94,193.85,2.5821]
[1735292585546,4.24,193.96,193.85,2.5821]
[1735292586047,4.24,193.96,193.83,2.5824]
[1735292586251,4.24,193.96,193.79,4.24]
[1735292586446,0.80793287,193.95,193.76,6.08274106]
[1735292586645,0.80793287,193.95,193.81,2.5826]
[1735292586846,0.80793287,193.95,193.78,4.24]
[1735292587152,0.80793287,193.95,193.77,4.24]
[1735292587348,4.24,193.96,193.77,4.24]
[1735292587649,2.582,193.87,193.77,4.24]
[1735292587847,4.24,193.96,193.8,2.5828]
[1735292588046,0.80795896,193.95,193.77,4.24]
[1735292588351,0.80795896,193.95,193.78,4.49844034]
[1735292588544,4.24,193.96,193.76,5.8258]
[1735292588545,4.24,193.96,193.77,4.49844034]
[1735292588745,2.5814,193.91,193.78,4.49844034]
[1735292588945,2.5814,193.91,193.79,4.49844034]
[1735292589148,2.5814,193.91,193.77,4.49844034]
[1735292589450,2.5814,193.91,193.84,2.5823]
[1735292590153,2.5817,193.89,193.83,2.5825]
[1735292590555,4.24,193.96,193.76,13.01639559]
[1735292590556,4.24,193.96,193.78,4.49412224]
[1735292590847,4.24,193.96,193.78,4.24]
[1735292591454,0.80793102,193.95,193.78,4.24]
[1735292591648,2.5822,193.86,193.79,2.583]
[1735292591848,4.24,193.96,193.77,4.49412224]
[1735292592150,0.80796762,193.95,193.75,5.6561]
[1735292592549,2.5827,193.82,193.75,5.6561]
[1735292593144,2.5825,193.84,193.77,2.5833]
[1735292593345,4.6116,193.86,193.77,2.5833]
[1735292593542,4.6116,193.86,193.75,3.0726]
[1735292594346,4.6116,193.86,193.75,5.6561]
[1735292596656,2.5827,193.82,193.75,5.6561]
[1735292597151,4.6116,193.86,193.76,2.5833]
[1735292597357,4.6116,193.86,193.75,3.0726]
[1735292597553,4.6116,193.86,193.75,1.5093]
[1735292597852,4.6116,193.86,193.71,64.44410622]
[1735292598054,4.6116,193.86,193.71,60.20410622]
[1735292598648,2.5832,193.78,193.72,2.5839]
[1735292598856,4.6116,193.86,193.68,7.3619]
[1735292599052,0.80844432,193.85,193.68,7.3619]
[1735292599457,0.80844432,193.85,193.7,2.5842]
[1735292599659,4.6116,193.86,193.69,4.50684483]
[1735292599957,4.6116,193.86,193.68,7.3619]
[1735292600251,2.5833,193.78,193.72,2.584]
[1735292600655,2.5834,193.76,193.7,2.5841]
[1735292601056,4.6116,193.86,193.68,7.3619]
[1735292601256,0.80844118,193.85,193.68,7.3619]
[1735292602057,2.5829,193.8,193.7,2.5842]
[1735292602260,11.79178251,193.86,193.68,7.3619]
[1735292602457,11.79178251,193.86,193.69,4.5080794]
[1735292602659,11.79178251,193.86,193.68,7.3619]
[1735292602855,11.79178251,193.86,193.69,4.50760003]
[1735292603057,11.79178251,193.86,193.7,4.50701846]
[1735292603264,11.79178251,193.86,193.78,2.5831]
[1735292603265,2.5823,193.85,193.78,2.5831]
[1735292603757,2.5823,193.85,193.79,2.583]
[1735292603957,2.5821,193.86,193.75,4.24]
[1735292604162,2.5821,193.86,193.76,9.0291]
[1735292605062,2.5821,193.86,193.8,2.5829]
[1735292605667,2.5823,193.85,193.8,2.5829]
[1735292605866,4.8183,193.91,193.79,2.583]
[1735292606367,2.5823,193.85,193.79,2.583]
[1735292608768,2.5823,193.85,193.8,2.5829]
[1735292609162,2.5821,193.87,193.78,4.50159678]
[1735292609359,2.5821,193.87,193.81,2.5826]
[1735292609765,2.5822,193.86,193.81,2.5826]
[1735292610967,4.8183,193.91,193.82,2.5826]
[1735292611566,2.5818,193.89,193.82,2.5826]
[1735292611768,4.8183,193.91,193.82,2.5826]
[1735292612568,2.5819,193.88,193.82,2.5826]
[1735292613472,4.8183,193.91,193.77,11.7454441]
[1735292613769,4.8183,193.91,193.76,4.7891]
[1735292613964,2.5826,193.83,193.77,2.5832]
[1735292615470,33.53903005,193.91,193.77,2.5832]
[1735292615669,33.53903005,193.91,193.76,5.7825]
[1735292615872,0.80819305,193.9,193.76,5.7825]
[1735292616966,33.53903005,193.91,193.77,4.5225284]
[1735292617168,7.18018251,193.89,193.82,2.5826]
[1735292617770,2.582,193.88,193.82,2.5826]
[1735292618269,1.85029109,193.95,193.79,7.23105492]
[1735292618465,2.5824,193.84,193.79,2.583]
[1735292618669,4.24,193.9,193.77,1.5713]
[1735292619271,4.24,193.9,193.77,4.1545]
[1735292619569,4.24,193.9,193.78,4.52173084]
[1735292619766,2.5822,193.86,193.8,2.5829]
[1735292619967,11.42018251,193.92,193.8,2.5829]
[1735292620172,32.96073005,193.92,193.8,2.5829]
[1735292620371,2.5821,193.86,193.8,2.5829]
[1735292620578,4.24,193.91,193.8,2.5829]
[1735292621077,2.5826,193.82,193.77,1.5713]
[1735292621475,4.24,193.91,193.63,27.23453475]
[1735292621683,2.5829,193.8,193.74,2.5837]
[1735292621979,4.24,193.91,193.75,4.52409484]
[1735292622173,28.72073005,193.88,193.76,4.52409484]
[1735292622378,28.72073005,193.88,193.71,64.44528585]
[1735292622577,28.72073005,193.88,193.72,13.40769098]
[1735292622780,2.5826,193.83,193.77,2.5832]
[1735292622978,28.72073005,193.88,193.72,1.6475]
[1735292623178,28.72073005,193.88,193.73,11.7608724]
[1735292623378,12.83259106,193.9,193.74,15.0447724]
[1735292623379,7.18018251,193.9,193.74,15.0447724]
[1735292623575,2.5826,193.83,193.76,2.5834]
[1735292623770,2.5826,193.83,193.77,4.52341246]
[1735292623973,7.18018251,193.9,193.78,4.52375765]
[1735292624178,4.24,193.88,193.76,2.5834]
[1735292624376,2.5828,193.81,193.77,4.52413648]
[1735292624683,2.5828,193.81,193.75,7.23921215]
[1735292624981,2.5828,193.81,193.76,4.52499229]
[1735292625283,2.5828,193.81,193.75,2.5835]
[1735292625477,2.5828,193.81,193.76,4.52532491]
[1735292625672,2.5828,193.81,193.75,2.5835]
[1735292625979,2.5828,193.81,193.76,4.52513218]
[1735292626177,2.5828,193.81,193.75,2.5835]
[1735292626377,2.5828,193.81,193.76,4.52536892]
[1735292626579,2.5828,193.81,193.75,2.5835]
[1735292626774,2.5828,193.81,193.76,4.52543579]
[1735292626975,2.5828,193.81,193.75,2.5835]
[1735292627174,2.5829,193.8,193.76,4.52524691]
[1735292627373,11.42018251,193.88,193.75,2.5835]
[1735292627583,11.42018251,193.88,193.76,7.10883105]
[1735292627779,2.5827,193.82,193.77,4.52543105]
[1735292628083,4.24,193.88,193.74,3.2839]
[1735292628284,2.5829,193.81,193.75,11.76496375]